fUSD/lending_fUSD_20250118
["ID","MTS","AMOUNT","RATE_DAILY","PERIOD"]
[349407023,1737166287653,-1420.61,0.00020999,2]
[349407024,1737166287663,-984.84,0.00020999,2]
[349407025,1737166287674,-500.0,0.00020999,2]
[349407026,1737166287684,-1761.72,0.00020999,2]
[349407027,1737166287694,-2232.47,0.00020999,2]
[349407028,1737166287704,-2502.11,0.00020999,2]
[349407029,1737166287713,-500.0,0.00020999,2]
[349407030,1737166287723,-1420.61,0.00020999,2]
[349407031,1737166287732,-984.84,0.00020999,2]
[349407032,1737166287741,-500.0,0.00020999,2]
[349407033,1737166287751,-1761.72,0.00020999,2]
[349407034,1737166287761,-2232.47,0.00020999,2]
[349407035,1737166287771,-500.0,0.00020999,2]
[349407036,1737166287780,-2502.11,0.00020999,2]
[349407037,1737166287790,-500.0,0.00020999,2]
[349407038,1737166287799,-1420.61,0.00020999,2]
[349407039,1737166287809,-984.84,0.00020999,2]
[349407040,1737166287818,-521.41364468,0.00020999,2]
[349407041,1737166287827,-1761.72,0.00020999,2]
[349407042,1737166287837,-2232.47,0.00020999,2]
[349407043,1737166287846,-500.0,0.00020999,2]
[349407044,1737166287857,-2502.11,0.00020999,2]
[349407045,1737166287866,-500.0,0.00020999,2]
[349407046,1737166287875,-1420.61,0.00020999,2]
[349407047,1737166287884,-984.84,0.00020999,2]
[349407048,1737166287894,-1761.72,0.00020999,2]
[349407049,1737166287906,-2232.47,0.00020999,2]
[349407050,1737166287915,-500.0,0.00020999,2]
[349407051,1737166287926,-2502.11,0.00020999,2]
[349407052,1737166287938,-1420.61,0.00020999,2]
[349407053,1737166287947,-500.0,0.00020999,2]
[349407054,1737166287957,-984.84,0.00020999,2]
[349407055,1737166287966,-1761.72,0.00020999,2]
[349407056,1737166287975,-2232.47,0.00020999,2]
[349407057,1737166287984,-500.0,0.00020999,2]
[349407058,1737166287994,-2502.11,0.00020999,2]
[349407059,1737166288003,-1420.61,0.00020999,2]
[349407060,1737166288012,-500.0,0.00020999,2]
[349407061,1737166288022,-500.0,0.00020999,2]
[349407062,1737166288031,-984.84,0.00020999,2]
[349407063,1737166288040,-1761.86576298,0.00020999,2]
[349407064,1737166288049,-2232.47,0.00020999,2]
[349407065,1737166288059,-2502.11,0.00020999,2]
[349407066,1737166288068,-500.0,0.00020999,2]
[349407067,1737166288078,-500.0,0.00020999,2]
[349407068,1737166288088,-210.33792228,0.00020999,2]
[349407069,1737166288097,-984.84,0.00020999,2]
[349407070,1737166288107,-2232.48920301,0.00020999,2]
[349407071,1737166288116,-500.0,0.00020999,2]
[349407072,1737166288126,-2502.11,0.00020999,2]
[349407073,1737166288135,-500.0,0.00020999,2]
[349407074,1737166288145,-528.51747147,0.00020999,2]
[349407075,1737166288155,-1420.82423943,0.00020999,2]
[349407076,1737166288165,-984.84,0.00020999,2]
[349407077,1737166288174,-500.0,0.00020999,2]
[349407078,1737166288184,-500.0,0.00020999,2]
[349407079,1737166288193,-2502.11,0.00020999,2]
[349407080,1737166288203,-984.84,0.00020999,2]
[349407081,1737166288212,-500.0,0.00020999,2]
[349407082,1737166288222,-500.0,0.00020999,2]
[349407083,1737166288231,-984.84,0.00020999,2]
[349407084,1737166288241,-2502.11,0.00020999,2]
[349407085,1737166288250,-500.0,0.00020999,2]
[349407086,1737166288260,-500.0,0.00020999,2]
[349407087,1737166288270,-2502.11,0.00020999,2]
[349407088,1737166288279,-500.0,0.00020999,2]
[349407089,1737166288288,-984.84,0.00020999,2]
[349407090,1737166288298,-2502.11,0.00020999,2]
[349407091,1737166288308,-251.82818899,0.00020999,2]
[349407092,1737166288317,-500.0,0.00020999,2]
[349407093,1737166288327,-2502.11,0.00020999,2]
[349407094,1737166288337,-500.0,0.00020999,2]
[349407095,1737166288346,-984.84,0.00020999,2]
[349407096,1737166288356,-2502.11,0.00020999,2]
[349407097,1737166288366,-500.0,0.00020999,2]
[349407098,1737166288376,-984.84,0.00020999,2]
[349407099,1737166288386,-506.80009052,0.00020999,2]
[349407100,1737166288395,-984.84,0.00020999,2]
[349407101,1737166288404,-7688.40547364,0.00021,2]
[349407102,1737166288414,-1319590.82271277,0.00021,2]
[349407103,1737166288424,-5704276.25507487,0.00021,10]
[349407104,1737166289270,-500.0,0.00020797,2]
[349407105,1737166289280,-2502.11,0.00020999,2]
[349407106,1737166289289,-52189.59675584,0.00021,10]
[349407107,1737166289301,-967.12349569,0.00021,10]
[349407108,1737166289312,-6478.41826495,0.00021,10]
[349407109,1737166289324,-13550.000001,0.00021,10]
[349407110,1737166289335,-763.13197587,0.00021,10]
[349407111,1737166289432,-366.0,0.000205,2]
[349407112,1737166289441,-134.0,0.00020999,2]
[349407113,1737166289780,-637.81751193,0.00020241,2]
[349407114,1737166289790,-504.33436478,0.00020797,2]
[349407115,1737166289800,-850.84,0.00020999,2]
[349407116,1737166289809,-502.86455528,0.00020999,2]
[349407117,1737166289819,-2502.11,0.00020999,2]
[349407118,1737166289829,-984.84,0.00020999,2]
[349407119,1737166289839,-984.84,0.00020999,2]
[349407120,1737166289850,-1803.3385943,0.00020999,2]
[349407121,1737166289868,-698.7714057,0.00020999,2]
[349407122,1737166289878,-402.0455943,0.00020999,2]
[349407123,1737166289891,-582.7944057,0.00020999,2]
[349407124,1737166289901,-312.21004504,0.00020999,2]
[349407125,1737166289913,-1569.63582127,0.00020999,2]
[349407126,1737166289965,-333.58518724,0.00020999,2]
[349407127,1737166289977,-286.71485759,0.00020999,2]
[349407128,1737166289987,-984.84,0.00020999,2]
[349407129,1737166289997,-985.01446259,0.00020999,2]
[349407130,1737166290006,-46714.15928701,0.00021,10]
[349407131,1737166290018,-115191.30887894,0.00021,10]
[349407132,1737166290029,-59236.4999796,0.00021,10]
[349407133,1737166290041,-93287.0,0.00021,10]
[349407134,1737166290053,-814.6,0.00021,10]
[349407135,1737166290065,-637.45799983,0.00021,10]
[349407136,1737166290077,-217840.36433511,0.00021,10]
[349407137,1737166290563,-5000.00457257,0.00021,10]
[349407138,1737166290576,-7663.36559041,0.00021,10]
[349407139,1737166290587,-744.5,0.00021,10]
[349407140,1737166290600,-3429.08816232,0.00021,10]
[349407141,1737166290612,-3089.87584932,0.00021,10]
[349407142,1737166290623,-487.98,0.00021,10]
[349407143,1737166290635,-505.79,0.00021,10]
[349407144,1737166290646,-562.39668,0.00021,10]
[349407145,1737166290657,-419.81087525,0.00021,10]
[349407146,1737166291205,-2109.61136886,0.00021,10]
[349407147,1737166291216,-401.96291768,0.00021,10]
[349407148,1737166291228,-6532.21863083,0.00021,10]
[349407149,1737166291241,-7802.88318729,0.00021,10]
[349407150,1737166291252,-1195.15621743,0.00021,10]
[349407151,1737166291264,-481.96507016,0.00021,10]
[349407152,1737166291275,-1918.88336097,0.00021,10]
[349407153,1737166291288,-40124.81351,0.00021,10]
[349407154,1737166291299,-2122.4739642,0.00021,10]
[349407155,1737166291311,-2071.91543677,0.00021,10]
[349407156,1737166291323,-8413.025585,0.00021,10]
[349407157,1737166291334,-9958.5,0.00021,10]
[349407158,1737166291346,-1264.76750391,0.00021,10]
[349407159,1737166291358,-339.15895824,0.00021,10]
[349407160,1737166291370,-8300.18929872,0.00021,10]
[349407161,1737166291381,-8428.4462514,0.00021,10]
[349407164,1737166852684,311.75,0.00010137,2]
[349407166,1737167109007,199008.00389529,0.00012,2]
[349407168,1737167159740,171.0,0.000231,120]
[349407169,1737167238142,-473.21678248,0.00016463,2]
[349407170,1737167244135,-1659.34760596,0.00016463,2]
[349407171,1737167246093,-1612.96433827,0.00016463,2]
[349407189,1737167432339,-163.58846744,0.00016512,2]
[349407190,1737167432349,-257.76733246,0.00016512,2]
[349407196,1737167432685,-769.37540296,0.00016512,2]
[349407197,1737167432695,-1027.14273542,0.00016562,2]
[349407198,1737167432705,-1125.96315818,0.00016612,2]
[349407199,1737167432717,-3894.50519516,0.00016612,2]
[349407200,1737167432727,-197.96,0.00016712,2]
[349407201,1737167432736,-88.67332622,0.0001673,2]
[349407274,1737167438651,-1027.14273542,0.00016612,2]
[349407275,1737167438661,-710.17667378,0.0001673,2]
[349407276,1737167438670,-311.75,0.00016813,2]
[349407277,1737167438679,-1612.0,0.000173,2]
[349407278,1737167438689,-537.262539,0.00018317,2]
[349407279,1737167438699,-1000.0,0.00018409,2]
[349407280,1737167438708,-250.0,0.00018409,2]
[349407281,1737167438717,-178.29,0.00018539,2]
[349407282,1737167438727,-150.0,0.00018592,2]
[349407283,1737167438736,-317.18,0.00018684,2]
[349407284,1737167438747,-300.0,0.00018776,2]
[349407285,1737167438756,-250.0,0.00018777,2]
[349407286,1737167438766,-1900.0,0.00018832,2]
[349407287,1737167438776,-700.0,0.00018832,2]
[349407288,1737167438786,-250.0,0.00018903,2]
[349407291,1737167438795,-890.53,0.00018963,2]
[349407292,1737167438805,-798.85,0.00018994,2]
[349407294,1737167438816,-23900.0,0.00019024,2]
[349407295,1737167438827,-198.99,0.0001905,2]
[349407296,1737167438836,-170.77,0.00019096,2]
[349407297,1737167438845,-247.06,0.00019195,2]
[349407298,1737167438855,-317.1,0.00019237,2]
[349407299,1737167438865,-1000.0,0.0001968,2]
[349407300,1737167438875,-251.0,0.00019756,2]
[349407301,1737167438885,-150.0,0.00019757,2]
[349407302,1737167438896,-635.0,0.00019757,2]
[349407303,1737167438907,-567.0,0.00019757,2]
[349407304,1737167438919,-1863.0,0.00019757,2]
[349407305,1737167438929,-819.628,0.00019757,2]
[349407306,1737167438939,-1256.946,0.00019757,2]
[349407307,1737167438950,-820.0,0.00019757,2]
[349407308,1737167438960,-2946.0,0.00019757,2]
[349407309,1737167438971,-2286.459,0.00019757,2]
[349407310,1737167438984,-166.715,0.00019757,2]
[349407311,1737167438996,-1175.0,0.00019757,2]
[349407312,1737167439008,-3900.0,0.00019757,2]
[349407313,1737167439019,-150.0,0.00019757,2]
[349407314,1737167439030,-151.0,0.00019757,2]
[349407315,1737167439041,-2017.0,0.00019757,2]
[349407316,1737167439051,-72347.9806,0.00019779,2]
[349407317,1737167439062,-192.32324758,0.00019779,2]
[349407318,1737167439078,-1208.6144,0.00019779,2]
[349407319,1737167439088,-500.0,0.00019878,2]
[349407320,1737167439098,-500.0,0.00019878,2]
[349407321,1737167439108,-500.0,0.00019878,2]
[349407322,1737167439118,-500.0,0.00019878,2]
[349407323,1737167439128,-500.0,0.00019878,2]
[349407324,1737167439138,-500.0,0.00019878,2]
[349407325,1737167439148,-500.0,0.00019878,2]
[349407326,1737167439157,-500.0,0.00019878,2]
[349407327,1737167439168,-500.0,0.00019878,2]
[349407328,1737167439178,-500.0,0.00019878,2]
[349407329,1737167439188,-500.0,0.00019878,2]
[349407330,1737167439198,-500.0,0.00019878,2]
[349407331,1737167439207,-500.0,0.00019878,2]
[349407332,1737167439217,-500.0,0.00019878,2]
[349407333,1737167439227,-500.0,0.00019878,2]
[349407334,1737167439237,-500.0,0.00019878,2]
[349407335,1737167439247,-500.0,0.00019878,2]
[349407336,1737167439256,-500.0,0.00019878,2]
[349407337,1737167439267,-500.0,0.00019878,2]
[349407338,1737167439276,-500.0,0.00019878,2]
[349407339,1737167439285,-500.0,0.00019878,2]
[349407340,1737167439295,-500.0,0.00019878,2]
[349407341,1737167439304,-500.0,0.00019878,2]
[349407342,1737167439313,-500.0,0.00019878,2]
[349407343,1737167439327,-500.0,0.00019878,2]
[349407344,1737167439337,-1371.78,0.00019878,2]
[349407345,1737167439347,-500.0,0.00019878,2]
[349407346,1737167439356,-500.0,0.00019878,2]
[349407347,1737167439365,-692.19,0.00019878,2]
[349407348,1737167439375,-500.0,0.00019878,2]
[349407349,1737167439384,-500.0,0.00019878,2]
[349407350,1737167439393,-500.0,0.00019878,2]
[349407351,1737167439403,-500.0,0.00019878,2]
[349407352,1737167439412,-542.81,0.00019878,2]
[349407353,1737167439421,-500.0,0.00019878,2]
[349407354,1737167439430,-500.0,0.00019878,2]
[349407355,1737167439440,-500.0,0.00019878,2]
[349407356,1737167439449,-500.0,0.00019878,2]
[349407357,1737167439459,-500.0,0.00019878,2]
[349407358,1737167439468,-500.0,0.00019878,2]
[349407359,1737167439477,-730.29,0.00019878,2]
[349407360,1737167439486,-687.17,0.00019878,2]
[349407361,1737167439495,-603.45,0.00019878,2]
[349407362,1737167439504,-1446.96,0.00019878,2]
[349407363,1737167439513,-549.3,0.00019878,2]
[349407364,1737167439522,-1898.61,0.00019878,2]
[349407365,1737167439531,-677.3,0.00019878,2]
[349407366,1737167439540,-573.37,0.00019878,2]
[349407367,1737167439548,-639.26,0.00019878,2]
[349407368,1737167439557,-500.0,0.00019878,2]
[349407369,1737167439570,-1264.46,0.00019878,2]
[349407370,1737167439579,-579.01,0.00019878,2]
[349407371,1737167439587,-1032.19,0.00019878,2]
[349407372,1737167439596,-500.0,0.00019878,2]
[349407373,1737167439605,-959.5,0.00019878,2]
[349407374,1737167439614,-500.0,0.00019878,2]
[349407375,1737167439624,-643.38,0.00019878,2]
[349407376,1737167439633,-500.0,0.00019878,2]
[349407377,1737167439642,-500.0,0.00019878,2]
[349407378,1737167439652,-1462.41,0.00019878,2]
[349407379,1737167439661,-788.17,0.00019878,2]
[349407380,1737167439671,-500.0,0.00019878,2]
[349407381,1737167439680,-1150.23,0.00019878,2]
[349407382,1737167439689,-619.68,0.00019878,2]
[349407383,1737167439699,-500.0,0.00019878,2]
[349407384,1737167439709,-10990.55680726,0.0001988,2]
[349407385,1737167439718,-2287.92124889,0.0001988,2]
[349407386,1737167439727,-207.84136787,0.000199,2]
[349407387,1737167439737,-178.29,0.00019911,2]
[349407388,1737167439747,-1900.0,0.00019928,2]
[349407389,1737167439756,-700.0,0.00019928,2]
[349407390,1737167439765,-1525.55879452,0.0002,2]
[349407391,1737167439775,-2184.27814788,0.0002,4]
[349407392,1737167439784,-198.99,0.00020003,2]
[349407393,1737167439794,-207.84136773,0.00020074,2]
[349407394,1737167439803,-347.83416533,0.00020141,2]
[349407395,1737167439812,-320.34894242,0.00020141,2]
[349407396,1737167439824,-5000.0,0.00020141,2]
[349407397,1737167439833,-347.83416532,0.00020225,2]
[349407398,1737167439843,-500.0,0.00020238,2]
[349407399,1737167439853,-500.0,0.00020238,2]
[349407400,1737167439862,-7835.6,0.00020238,2]
[349407401,1737167439872,-500.0,0.00020238,2]
[349407402,1737167439882,-500.0,0.00020238,2]
[349407403,1737167439891,-500.0,0.00020238,2]
[349407404,1737167439901,-500.0,0.00020238,2]
[349407405,1737167439910,-500.0,0.00020238,2]
[349407406,1737167439919,-649.79,0.00020238,2]
[349407407,1737167439928,-1688.32,0.00020238,2]
[349407408,1737167439940,-500.0,0.00020238,2]
[349407409,1737167439950,-1142.22,0.00020238,2]
[349407410,1737167439960,-1980.83,0.00020238,2]
[349407411,1737167439970,-500.0,0.00020238,2]
[349407412,1737167439980,-582.56,0.00020238,2]
[349407413,1737167439989,-500.0,0.00020238,2]
[349407414,1737167439998,-500.0,0.00020238,2]
[349407415,1737167440007,-500.0,0.00020238,2]
[349407416,1737167440016,-500.0,0.00020238,2]
[349407417,1737167440025,-500.0,0.00020238,2]
[349407419,1737167440254,-502.52956279,0.00020238,2]
[349407420,1737167440266,-1330.91,0.00020238,2]
[349407421,1737167440275,-500.0,0.00020238,2]
[349407422,1737167440284,-268.27215386,0.00020238,2]
[349407423,1737167440294,-502.79445106,0.00020238,2]
[349407424,1737167440304,-500.0,0.00020238,2]
[349407425,1737167440313,-500.0,0.00020238,2]
[349407426,1737167440327,-580.8,0.00020238,2]
[349407427,1737167440340,-500.0,0.00020238,2]
[349407428,1737167440350,-500.0,0.00020238,2]
[349407432,1737167440359,-506.61839384,0.00020239,2]
[349407434,1737167440369,-504.92562809,0.00020239,2]
[349407436,1737167440378,-500.0,0.00020239,2]
[349407438,1737167440388,-501.50585485,0.00020239,2]
[349407440,1737167440398,-500.0,0.00020239,2]
[349407441,1737167440408,-500.0,0.00020239,2]
[349407442,1737167440417,-500.0,0.00020239,2]
[349407443,1737167440427,-500.0,0.00020239,2]
[349407444,1737167440437,-502.8477049,0.00020239,2]
[349407445,1737167440446,-500.0,0.00020239,2]
[349407446,1737167440456,-729.68,0.00020239,2]
[349407447,1737167440465,-504.88053707,0.00020239,2]
[349407448,1737167440474,-500.0,0.00020239,2]
[349407449,1737167440484,-502.92464172,0.00020239,2]
[349407450,1737167440493,-502.80962521,0.00020239,2]
[349407451,1737167440503,-500.0,0.00020239,2]
[349407452,1737167440512,-3824.80593536,0.00020239,2]
[349407453,1737167440521,-500.0,0.00020239,2]
[349407454,1737167440530,-500.0,0.00020239,2]
[349407455,1737167440540,-647.43003201,0.00020239,2]
[349407456,1737167440549,-500.0,0.00020239,2]
[349407457,1737167440559,-500.0,0.00020239,2]
[349407458,1737167440570,-500.0,0.00020239,2]
[349407459,1737167440580,-500.0,0.00020239,2]
[349407460,1737167440589,-500.0,0.00020239,2]
[349407461,1737167440599,-500.0,0.00020239,2]
[349407462,1737167440609,-500.0,0.00020239,2]
[349407463,1737167440618,-501.9084855,0.00020239,2]
[349407464,1737167440627,-500.0,0.00020239,2]
[349407465,1737167440637,-500.0,0.00020239,2]
[349407466,1737167440647,-500.0,0.00020239,2]
[349407467,1737167440657,-502.10543995,0.00020239,2]
[349407468,1737167440666,-658.28,0.00020239,2]
[349407469,1737167440676,-504.97834358,0.00020239,2]
[349407470,1737167440686,-504.7549408,0.00020239,2]
[349407471,1737167440695,-500.0,0.00020239,2]
[349407472,1737167440705,-500.0,0.00020239,2]
[349407473,1737167440714,-500.0,0.00020239,2]
[349407474,1737167440724,-500.0,0.00020239,2]
[349407475,1737167440734,-500.0,0.00020239,2]
[349407476,1737167440744,-500.0,0.00020239,2]
[349407477,1737167440754,-502.6829081,0.00020239,2]
[349407478,1737167440765,-500.0,0.00020239,2]
[349407479,1737167440775,-500.0,0.00020239,2]
[349407480,1737167440786,-500.0,0.00020239,2]
[349407481,1737167440795,-500.0,0.00020239,2]
[349407482,1737167440804,-500.0,0.00020239,2]
[349407483,1737167440813,-500.0,0.00020239,2]
[349407485,1737167440824,-500.0,0.00020239,2]
[349407487,1737167440833,-500.0,0.00020239,2]
[349407489,1737167440842,-500.0,0.00020239,2]
[349407491,1737167440851,-218.14564061,0.00020239,2]
[349407493,1737167440861,-500.0,0.00020239,2]
[349407495,1737167440870,-503.1682091,0.00020239,2]
[349407497,1737167440879,-500.0,0.00020239,2]
[349407499,1737167440888,-500.0,0.00020239,2]
[349407501,1737167440898,-500.0,0.00020239,2]
[349407503,1737167440907,-502.28014488,0.00020239,2]
[349407505,1737167440916,-500.0,0.00020239,2]
[349407507,1737167440927,-500.0,0.00020239,2]
[349407509,1737167440936,-500.0,0.00020239,2]
[349407511,1737167440946,-500.0,0.00020239,2]
[349407514,1737167440955,-500.0,0.00020239,2]
[349407516,1737167440966,-461.83929782,0.00020239,2]
[349407518,1737167440975,-500.0,0.00020239,2]
[349407520,1737167440985,-500.0,0.00020239,2]
[349407522,1737167440994,-500.0,0.00020239,2]
[349407524,1737167441003,-594.09341337,0.00020239,2]
[349407526,1737167441012,-501.91860542,0.00020239,2]
[349407528,1737167441022,-500.0,0.00020239,2]
[349407530,1737167441031,-369.27746265,0.00020239,2]
[349407532,1737167441040,-500.0,0.00020239,2]
[349407534,1737167441050,-500.0,0.00020239,2]
[349407536,1737167441059,-500.0,0.00020239,2]
[349407538,1737167441071,-500.0,0.00020239,2]
[349407540,1737167441080,-500.0,0.00020239,2]
[349407542,1737167441091,-295.88711725,0.00020239,2]
[349407544,1737167441101,-500.0,0.00020239,2]
[349407546,1737167441110,-500.0,0.00020239,2]
[349407548,1737167441119,-504.24523241,0.00020239,2]
[349407550,1737167441127,-500.0,0.00020239,2]
[349407552,1737167441136,-501.58650791,0.00020239,2]
[349407553,1737167441146,-500.46576851,0.00020239,2]
[349407555,1737167441156,-1163.27,0.00020239,2]
[349407557,1737167441165,-500.0,0.00020239,2]
[349407559,1737167441176,-500.0,0.00020239,2]
[349407561,1737167441185,-500.0,0.00020239,2]
[349407563,1737167441194,-500.0,0.00020239,2]
[349407565,1737167441204,-500.0,0.00020239,2]
[349407567,1737167441213,-500.0,0.00020239,2]
[349407569,1737167441222,-500.0,0.00020239,2]
[349407571,1737167441231,-500.0,0.00020239,2]
[349407573,1737167441240,-500.0,0.00020239,2]
[349407575,1737167441249,-598.57146319,0.00020239,2]
[349407577,1737167441261,-500.0,0.00020239,2]
[349407579,1737167441270,-501.54594128,0.00020239,2]
[349407581,1737167441280,-500.36168689,0.00020239,2]
[349407583,1737167441290,-500.0,0.00020239,2]
[349407585,1737167441301,-500.0,0.00020239,2]
[349407587,1737167441312,-502.70763813,0.00020239,2]
[349407589,1737167441324,-500.0,0.00020239,2]
[349407591,1737167441334,-580.2,0.00020239,2]
[349407593,1737167441343,-502.1180096,0.00020239,2]
[349407595,1737167441352,-500.0,0.00020239,2]
[349407597,1737167441361,-550.23,0.00020239,2]
[349407599,1737167441371,-504.18350713,0.00020239,2]
[349407601,1737167441381,-500.0,0.00020239,2]
[349407603,1737167441391,-391.82584601,0.00020239,2]
[349407605,1737167441401,-500.0,0.00020239,2]
[349407607,1737167441410,-500.0,0.00020239,2]
[349407609,1737167441419,-690.5,0.00020239,2]
[349407611,1737167441428,-502.15679937,0.00020239,2]
[349407613,1737167441438,-500.0,0.00020239,2]
[349407615,1737167441447,-500.0,0.00020239,2]
[349407617,1737167441457,-502.77838357,0.00020239,2]
[349407619,1737167441467,-500.0,0.00020239,2]
[349407620,1737167441476,-500.0,0.00020239,2]
[349407622,1737167441486,-663.82,0.00020239,2]
[349407624,1737167441495,-1361.42,0.00020239,2]
[349407626,1737167441505,-500.0,0.00020239,2]
[349407628,1737167441515,-500.0,0.00020239,2]
[349407630,1737167441524,-929.03,0.00020239,2]
[349407632,1737167441533,-500.0,0.00020239,2]
[349407634,1737167441542,-500.0,0.00020239,2]
[349407636,1737167441552,-500.0,0.00020239,2]
[349407638,1737167441561,-267.2573874,0.00020239,2]
[349407640,1737167441572,-500.0,0.00020239,2]
[349407642,1737167441581,-210.33792228,0.00020239,2]
[349407644,1737167441591,-1221.25,0.00020239,2]
[349407646,1737167441600,-500.0,0.0002024,2]
[349407648,1737167441610,-500.0,0.0002024,2]
[349407650,1737167441620,-529.66,0.0002024,2]
[349407652,1737167441629,-500.0,0.0002024,2]
[349407654,1737167441639,-500.0,0.0002024,2]
[349407656,1737167441648,-500.0,0.0002024,2]
[349407658,1737167441657,-500.0,0.0002024,2]
[349407660,1737167441667,-500.0,0.0002024,2]
[349407662,1737167441676,-500.0,0.0002024,2]
[349407664,1737167441685,-505.48937043,0.0002024,2]
[349407666,1737167441695,-500.0,0.0002024,2]
[349407668,1737167441704,-500.0,0.0002024,2]
[349407670,1737167441714,-500.0,0.0002024,2]
[349407672,1737167441723,-500.0,0.0002024,2]
[349407674,1737167441732,-500.0,0.0002024,2]
[349407676,1737167441742,-500.0,0.0002024,2]
[349407678,1737167441752,-500.0,0.0002024,2]
[349407680,1737167441761,-500.0,0.0002024,2]
[349407682,1737167441771,-514.02706489,0.0002024,2]
[349407684,1737167441781,-500.0,0.0002024,2]
[349407686,1737167441791,-500.0,0.0002024,2]
[349407688,1737167441800,-500.0,0.0002024,2]
[349407690,1737167441809,-500.0,0.0002024,2]
[349407692,1737167441820,-500.0,0.0002024,2]
[349407694,1737167441830,-500.0,0.0002024,2]
[349407696,1737167441839,-500.0,0.0002024,2]
[349407698,1737167441848,-500.0,0.0002024,2]
[349407700,1737167441857,-500.0,0.0002024,2]
[349407702,1737167441866,-500.0,0.0002024,2]
[349407704,1737167441875,-591.57,0.0002024,2]
[349407706,1737167441885,-500.0,0.0002024,2]
[349407708,1737167441894,-500.0,0.0002024,2]
[349407710,1737167441904,-500.0,0.0002024,2]
[349407712,1737167441913,-500.0,0.0002024,2]
[349407714,1737167441923,-500.0,0.0002024,2]
[349407716,1737167441932,-500.0,0.0002024,2]
[349407718,1737167441941,-500.0,0.0002024,2]
[349407720,1737167441950,-532.47,0.0002024,2]
[349407721,1737167441960,-500.0,0.0002024,2]
[349407722,1737167441969,-501.95,0.0002024,2]
[349407723,1737167441978,-500.0,0.0002024,2]
[349407724,1737167441986,-500.0,0.0002024,2]
[349407725,1737167441995,-610.86,0.0002024,2]
[349407726,1737167442004,-500.0,0.0002024,2]
[349407727,1737167442013,-500.0,0.0002024,2]
[349407728,1737167442022,-694.99,0.0002024,2]
[349407729,1737167442031,-672.66,0.0002024,2]
[349407730,1737167442039,-1078.88,0.0002024,2]
[349407731,1737167442048,-2139.45,0.0002024,2]
[349407732,1737167442057,-500.0,0.0002024,2]
[349407733,1737167442066,-500.0,0.0002024,2]
[349407734,1737167442077,-712.35,0.0002024,2]
[349407735,1737167442086,-500.0,0.0002024,2]
[349407736,1737167442095,-697.59,0.0002024,2]
[349407738,1737167442104,-500.0,0.0002024,2]
[349407740,1737167442114,-1424.49,0.0002024,2]
[349407742,1737167442123,-500.0,0.0002024,2]
[349407744,1737167442133,-1037.91,0.0002024,2]
[349407746,1737167442142,-750.92,0.0002024,2]
[349407748,1737167442152,-884.97,0.0002024,2]
[349407750,1737167442162,-795.09,0.0002024,2]
[349407752,1737167442171,-804.1,0.0002024,2]
[349407754,1737167442181,-566.25,0.0002024,2]
[349407756,1737167442191,-583.75,0.0002024,2]
[349407758,1737167442200,-500.0,0.0002024,2]
[349407760,1737167442210,-500.0,0.0002024,2]
[349407762,1737167442219,-500.0,0.0002024,2]